Cogmind - Beta 14 @@@ ROGUE MODE // 2024.08.31 @ 22:13:34 Player: grhkm Result: Destroyed by G-47 Trooper with Particle Gun Performance ------------- Evolutions (0) 0 Regions Visited (2) 400 Robots Destroyed (21) 105 Value Destroyed (489) 489 Prototype IDs (0) 0 Alien Tech Used (0) 0 Bonus (0) 0 TOTAL SCORE: 994 Bonus ------- None Cogmind --------- Core Integrity 0/250 Matter 300/300 Energy 250/250 System Corruption 1% Temperature Cool (48) Movement Walking (190) Ox1 Location -10/Mines Parts ------- > --- POWER (1) -------- Ion Engine > --- PROPULSION (2) --- Aluminum Leg Aluminum Leg > --- UTILITY (2) ------ Small Storage Unit Small Storage Unit > --- WEAPON (2) ------- Small Laser Beam Cannon > --- INVENTORY (8) ---- Aluminum Leg Aluminum Leg Peak State ------------ > --- POWER ------------ Ion Engine > --- PROPULSION ------- Aluminum Leg Aluminum Leg > --- UTILITY ---------- Heat Sink Small Storage Unit > --- WEAPON ----------- Assault Rifle Light Assault Rifle > --- INVENTORY -------- Small Laser [Rating: 7] Favorites ----------- Power Ion Engine Engine Ion Engine Propulsion Aluminum Leg Leg Aluminum Leg Wheel Compact Wheel Flight Unit Flight Unit Utility Small Storage Unit Device Heat Sink Storage Small Storage Unit Weapon Assault Rifle Energy Gun Small Laser Energy Cannon Beam Cannon Ballistic Gun Assault Rifle Build | -11 -10 -10 ------- Run | Yrd Mat Min Slots Evolved . | . . . Power . | . . . Propulsion . | . . . Utility . | . . . Weapon . | . . . Parts Attached 20 | 4 11 5 Power 2 | . 2 . Engine 2 | . 2 . Core . | . . . Reactor . | . . . Propulsion 9 | 2 3 4 Treads . | . . . Leg 6 | 2 1 3 Wheel 1 | . 1 . Hover . | . . . Flight 2 | . 1 1 Utility 5 | . 4 1 Device 2 | . 2 . Storage 3 | . 2 1 Processor . | . . . Hackware . | . . . Protection . | . . . Artifact . | . . . Weapon 4 | 2 2 . Energy Gun 1 | . 1 . Energy Cannon 1 | . 1 . Ballistic Gun 2 | 2 . . Ballistic Cannon . | . . . Launcher . | . . . Special Weapon . | . . . Impact Weapon . | . . . Slashing Weapon . | . . . Piercing Weapon . | . . . Special Melee Weapon . | . . . Unidentified Prototypes . | . . . Parts Lost . | . . . Power . | . . . Propulsion . | . . . Utility . | . . . Weapon . | . . . Highest Loss Streak . | . . . To Critical Strikes . | . . . Average Slot Usage (%) 92 | . 89 99 Engine 10 | . 8 14 Leg 17 | . 17 16 Wheel 4 | . 3 5 Flight 5 | . 5 5 Device 10 | . 12 5 Storage 15 | . 13 22 Energy Gun 7 | . 4 14 Energy Cannon 6 | . 2 14 Ballistic Gun 14 | . 20 . Peak Build Rating 7 | 4 7 7 Average Rating 6 | 3 6 6 On Entrance 3 | . 4 7 Naked Turns . | . . . Heaviest Build 19 | 3 15 19 Greatest Support 20 | 20 20 16 Greatest Overweight (x) 4 | . 4 1 Average Overweight (x) . | . . . Largest Inventory Capacity 8 | 5 8 8 Average Capacity 7 | 5 7 8 Most Carried 8 | . 8 5 Average Carried 2 | . 3 1 Final Capacity 8 | 5 8 8 Final Carried 2 | . 1 2 Class Distribution -------------------- 100% | Mutant Dominant Class ---------------- Mutant | -10/Materials Mutant | -10/Mines Resources | -11 -10 -10 ----------- Run | Yrd Mat Min Matter Collected 549 | 252 244 53 Remotely . | . . . Salvage Created 614 | 49 282 283 Parts 37 | 2 18 17 Haulers Intercepted . | . . . Recyclers Shooed . | . . . Parts Field Recycled . | . . . Retrieved Matter . | . . . Parts Self-Destructed . | . . . Prevented . | . . . Kills | -11 -10 -10 ------- Run | Yrd Mat Min Combat Hostiles Destroyed 17 | 1 8 8 Guns 8 | 1 4 3 Cannons 9 | . 4 5 Classes Destroyed 5 | 1 3 1 Worker 1 | . 1 . Tunneler 1 | . . 1 Watcher 2 | . 2 . Swarmer 7 | . 4 3 Grunt 10 | 1 4 5 Best Kill Streak 4 | 1 4 4 Combat Bots Only 3 | 1 3 3 Max Kills in Single Turn 2 | 1 2 2 Gunslinging . | . . . Exploded . | . . . Melee . | . . . Uniques/NPCs Destroyed . | . . . Combat | -11 -10 -10 -------- Run | Yrd Mat Min Hostile Shots Fired 135 | 4 95 36 Missed 50 | . 37 13 Damage Taken 934 | 44 611 279 Core 265 | 10 196 59 Absorbed by Shields . | . . . Core Remaining (%) 96 | 96 . . Volleys Fired 70 | 3 48 19 Largest 2 | 2 2 2 Hottest 100 | 40 100 100 Shots Fired 140 | 6 96 38 Gun 108 | 6 83 19 Cannon 32 | . 13 19 Launcher . | . . . Special . | . . . Kinetic 75 | 6 69 . Thermal 65 | . 27 38 Explosive . | . . . Electromagnetic . | . . . Robot Hit Streak 11 | 2 11 11 Robot Miss Streak 10 | 2 10 3 Penetration Max . | . . . Secondary Targets . | . . . Shots Hit Robots 73 | 3 46 24 Core Hits 35 | 2 18 15 Critical Kills . | . . . Critical Parts Destroyed . | . . . Critical Strikes . | . . . Melee Attacks . | . . . Impact . | . . . Slashing . | . . . Piercing . | . . . Sneak Attacks . | . . . Combat Hostiles . | . . . Follow-up Attacks . | . . . Damage Inflicted 982 | 30 591 361 Guns 615 | 30 432 153 Cannons 364 | . 156 208 Explosions . | . . . Melee . | . . . Ramming 3 | . 3 . Kinetic 377 | 30 347 . Thermal 602 | . 241 361 Explosive . | . . . Electromagnetic . | . . . Impact . | . . . Slashing . | . . . Piercing . | . . . Highest Corruption 1 | . 1 1 Average Corruption 1 | . 1 1 Corruption Purged . | . . . Corruption Blocked . | . . . Effects 5 | . 3 2 Message Errors 1 | . 1 . Heat Flow Errors 2 | . 1 1 Data Loss (major) 1 | . . 1 Alerts 1 | . 1 . Overload Shots . | . . . Overflow Damage . | . . . Projectiles . | . . . Explosions . | . . . Melee . | . . . Knockbacks . | . . . Impact . | . . . Kinetic . | . . . Secondary . | . . . Self-Inflicted Damage . | . . . Shots . | . . . Rammed . | . . . Targets Rammed 1 | . 1 . Kicked 1 | . 1 . Crushed . | . . . Highest Temperature 312 | 1 234 312 Average Temperature 77 | 1 36 94 Received Heat Transfer 360 | 24 204 132 Siege Activations . | . . . Robots Corrupted . | . . . Combat Hostiles . | . . . Parts Fried . | . . . Impact Corruptions . | . . . Robots Melted . | . . . Combat Hostiles . | . . . Parts Melted 3 | . 1 2 Heat Transferred 1327 | . 533 794 Parts Sabotaged . | . . . Parts Stolen . | . . . Parts Stripped . | . . . Power Chain Reactions . | . . . Alert | -11 -10 -10 ------- Run | Yrd Mat Min Peak Influence 195 | 20 153 195 Initial 13 | . 13 . Average 58 | 3 42 118 Maximum Alert Level . | . . . Low Security (%) 100 | 100 100 100 Level 1 . | . . . Level 2 . | . . . Level 3 . | . . . Level 4 . | . . . Level 5 . | . . . High Security . | . . . Max Security . | . . . Squads Dispatched 1 | . 1 . Investigation . | . . . Extermination . | . . . Reinforcement 1 | . 1 . Assault . | . . . Garrison . | . . . Intercept . | . . . Searches Triggered . | . . . Construction Impeded . | . . . Haulers Reinforced . | . . . Active Scanning Responses . | . . . Cargo Convoy Interrupts . | . . . Stealth | -11 -10 -10 --------- Run | Yrd Mat Min Distress Signals . | . . . Communications Jammed . | . . . Distress Signals . | . . . Times Spotted 25 | 1 15 9 Peak Tracking Total 5 | 1 5 3 Tactical Retreats . | . . . Traps | -11 -10 -10 ------- Run | Yrd Mat Min Traps Triggered 2 | . 2 . Indirectly . | . . . Trap Hack Attempts . | . . . Triggered . | . . . Disarmed . | . . . Reprogrammed . | . . . Reused . | . . . Traps Extracted . | . . . Installed . | . . . Triggered . | . . . Machines | -11 -10 -10 ---------- Run | Yrd Mat Min Machines Disabled . | . . . Max in Single Turn . | . . . Machines Repaired . | . . . Machines Dismantled . | . . . Machines Sabotaged . | . . . Overloaded Fab Kills . | . . . Hacking | -11 -10 -10 --------- Run | Yrd Mat Min Machines Accessed 3 | . 3 . Terminals 3 | . 3 . Fabricators . | . . . Repair Stations . | . . . Recycling Units . | . . . Scanalyzers . | . . . Garrison Access . | . . . Total Hacks 4 | . 4 . Successful 4 | . 4 . Failed . | . . . Catastrophic . | . . . Database Lockouts . | . . . Manual . | . . . Terminals 4 | . 4 . Fabricators . | . . . Repair Stations . | . . . Recycling Units . | . . . Scanalyzers . | . . . Garrison Access . | . . . Terminal Hacks 4 | . 4 . Record 1 | . 1 . Emergency Access Points 1 | . 1 . Locate Traps 1 | . 1 . Zone Layout 1 | . 1 . Fabricator Hacks . | . . . Repair Station Hacks . | . . . Recycling Unit Hacks . | . . . Scanalyzer . | . . . Garrison Access Hacks . | . . . Unauthorized Hacks . | . . . Terminals . | . . . Fabricators . | . . . Repair Stations . | . . . Recycling Units . | . . . Scanalyzers . | . . . Garrison Access . | . . . Data Cores Recovered . | . . . Used . | . . . Hacking Detections 1 | . 1 . Full Trace Events . | . . . Feedback Events . | . . . Feedback Blocked . | . . . Robot Schematics Acquired . | . . . Robots Built . | . . . Authchips . | . . . Time . | . . . Total Robot Build Rating . | . . . Part Schematics Acquired . | . . . Parts Built . | . . . Authchips . | . . . Time . | . . . Total Part Build Rating . | . . . Parts Repaired . | . . . Time . | . . . Parts Recycled . | . . . Recycled Matter . | . . . Retrieved Matter . | . . . Retrieved Components . | . . . Parts Scanalyzed . | . . . Part Schematics Acquired . | . . . Parts Damaged . | . . . Bothacking | -11 -10 -10 ------------ Run | Yrd Mat Min Used RIF Installer . | . . . Robots Hacked . | . . . Non-combat . | . . . Combat . | . . . Robot Hacks Applied . | . . . Relay Couplers Released . | . . . Fabnet Peak Effective % . | . . . Robots Rewired . | . . . Allies Hacked . | . . . Hacks Repelled . | . . . Allies | -11 -10 -10 -------- Run | Yrd Mat Min Total Allies . | . . . Largest Group . | . . . Highest-Rated Group . | . . . Highest-Rated Ally . | . . . Total Orders . | . . . Ally Attacks . | . . . Total Damage . | . . . Kills . | . . . Allies Corrupted . | . . . Allies Melted . | . . . Intel | -11 -10 -10 ------- Run | Yrd Mat Min Robot Analysis Total . | . . . Derelict Logs Recovered . | . . . Drone Launches . | . . . Drone Recoveries . | . . . Exploration | -11 -10 -10 ------------- Run | Yrd Mat Min Turns Passed 1230 | 116 800 314 Spaces Moved 783 | 94 513 176 Core 22 | 17 5 . Treads . | . . . Legs 470 | 77 319 74 Wheels 258 | . 156 102 Hover . | . . . Flight 33 | . 33 . Fastest Speed 50 | 50 100 100 Average Speed 124 | 107 122 137 Slowest Speed 280 | 120 280 190 Overloaded Moves . | . . . Propulsion Burnouts . | . . . Robots Hopped . | . . . Cave-ins Triggered . | . . . Exploration Rate (%) 32 | 7 57 34 Regions Visited 2 Branch Regions 1 Pre-discovered Areas . | . . . Known Exits Taken . | . . . Unknown Exits Taken 2 | 1 1 . Scrap Searched . | . . . Spaces Dug . | . . . Terrain Destroyed . | . . . Melee . | . . . Projectile . | . . . AOE . | . . . Terrain Rammed . | . . . Walls Destroyed . | . . . Machines Disabled . | . . . Actions | -11 -10 -10 --------- Run | Yrd Mat Min Total 912 | 101 599 212 Wait 3 | 1 . 2 Move 781 | 93 512 176 Hop . | . . . Pick Up 10 | . 7 3 Fast Attach 13 | 4 9 . Attach 5 | . 1 4 Detach 11 | . 7 4 Swap 2 | . 1 1 Drop 16 | . 13 3 Fire 70 | 3 48 19 Melee . | . . . Ram . | . . . Kick 1 | . 1 . Crush . | . . . Escape Stasis . | . . . Rewire . | . . . Trap . | . . . Miscellaneous . | . . . Route ------- -11/Scrapyard -10/Materials (discovered 2 exits: [*Mat] / [*Min]) -10/Mines History --------- Turn | Location | Event 2 | -11/Scrapyard | Met Revision 17 81 | -11/Scrapyard | Discovered new exit (range 8) 117 | -11/Scrapyard | Entered Materials 318 | -10/Materials | Build established: Mutant 601 | -10/Materials | Core integrity fell below 50% 798 | -10/Materials | Discovered new exit (range 9) 861 | -10/Materials | Core integrity fell below 20% 900 | -10/Materials | Discovered new exit (range 7) 917 | -10/Materials | Entered Mines 1017 | -10/Mines | Met a Derelict bent on vengeance 1231 | -10/Mines | Destroyed by G-47 Trooper with Particle Gun Last Messages --------------- Acquired 3 matter. S-10 Pest destroyed. G-47 Trooper destroyed. Sml. Laser melted. G-34 Mercenary destroyed. Acquired Aluminum Leg. Dropped Com. Wheel. Dropped Heat Sink. Dropped Flight Unit. System corrupted: Heat flow error (+275). Acquired 40 matter. G-47 Trooper: "SECOND INTRUDER APPROACHING. ELIMINATE." G-47 Trooper destroyed. G-34 Mercenary destroyed. Heat Sink melted. G-34 Mercenary destroyed. Acquired Aluminum Leg. Acquired 10 matter. K-01 Serf collects debris. Map ----- +----------------------------------------------------+ | | | | | | | | | | | | | | | | | ?????????????????????????????????????????????????? | | ?????????????????????????????????????????????????? | | ?????????????????????????????????????????????????? | | ?????????????????????????????????????????????????? | | ?????????????????????????????????????????????????? | | ??####???????????????????????????????????????????? | | ?## ##??????????????????????????????????????????? | | ?# ##?????????????????????????????????????????? | | ?# #?????????????????????????????????????????? | | ?# #?????????????????????????????????????????? | | ## #??????????????????????????????????????????? | | # ##?????????????????????????????????????????? | | ##????????????????????????????????????????? | | [ ##???????????????????????????????????????? | | % ######??????????????????????????????????? | | !%% #??????????????????????????????????? | | ##### ### #??################## ????????? | | ????## ### #### @ g #????????? | | ?????## ## ????????? | | ??????## ###### ##############k t ????????? | | ???????##% #???# #?????????????????? ?????????? | | ????????# #???# #?????????????????????????????? | | ????????##%=##???# #?????????????????????????????? | | ?????????# %####?# #?????????????????????????????? | | ?????????# ### #?????????????????????????????? | | ????????## ## #?????????????????????????????? | | ???????## ## #?????????????????????????????? | | ??????## % #?????????????????????????????? | | ?????## #####?????????????????????????????? | | ?????# #?????????????????????????????????? | | ???# #?????????????????????????????????? | | ???# # #?????????????????????????????????? | | ???# ## #?????????????????????????????????? | | ???## ### #?????????????????????????????????? | | ????## ??# #?????????????????????????????????? | | ?????# ??# #?????????????????????????????????? | | ?????# ??# #?????????????????????????????????? | | ?????### ??# #?????????????????????????????????? | | ???????# ??# #?????????????????????????????????? | | ???????# ?## #?????????????????????????????????? | | ???????# ## #?????????????????????????????????? | | ??????## #?????????????????????????????????? | +----------------------------------------------------+ Best States ------------- Heat Dissipation 35 Energy Generation 10 Energy Capacity 250 Matter Stores 300 Matter Capacity 300 Sight Range 16 Terrain Scan Density 10 Evasion (%) 55 Item Schematics ----------------- None Robot Schematics ------------------ None Fabricated ------------ Nothing Alien Tech Used ----------------- None Achievements -------------- Storm Trooper Challenges ------------ None Game ------ Seed MasterSeismicFlail Manual? 0 Play Time 00:21:20 Cumulative 0.9 hours Start 2024.08.31 @ 03:20:01 End 2024.08.31 @ 22:13:34 Sessions 5 Manual Loads 0 Difficulty Rogue Special Mode None Game No. 3 Rogue 3 Adventurer 0 Explorer 0 Win Type - Total 0 Types 0/0/0/0/0/0/0/0/0 Lore% 0 Gallery% 2 Achievement% 2 Wizard Run 0 Options --------- Layout 1 ASCII 1 Keyboard 1 Movement Arrows Keybinds 0 Fullscreen 1 Font 16/SmallcapsGlow Map View 50x40 Zoom Use 0% Tactical HUD 0 Map Filters NONE Filters NONE Steam 1 RUN: 777c776b-1072-444d-85a9-0c64b1e27ea9